{"text_format":"1","workbook":"xlsx","n_sheets":7,"sheets":["Задание","Условия","Результат","Системы","Клиенты","Сводная серия","Сводная системы"],"not_rendered":{"charts":0,"images":2,"macros":1,"external_links":0,"defined_names":4,"comments":0,"pivot_tables":0},"unopened":[],"bounds":{"document_bytes":16777216,"sheet_cells":100000,"rows_first":2000,"rows_last":500,"rows_between":2000,"halvings":0,"cell_chars":16384,"cell_head_chars":4096},"cells_cut":0,"cells_raw":0,"read":"whole","date_system":"1900"}

{"sheet":"Задание","index":0,"n_rows":57,"n_cols":1,"rows_kept":57,"cut":false,"hidden":false,"merged":[]}
["ЗАДАНИЕ К ТЕСТУ"]
[]
["Целью теста является определение уровня владения средствами Excel и аналитических способностей."]
["Выполнение всех заданий не является обязательным условием. Оценка навыков будет проводиться по выполненной части теста."]
["Тест состоит из двух частей:"]
[]
["1. Техническая часть. Построение электронной таблицы на имеющемся листе \"Результат\". Шапка таблицы уже присутствует на листе, необходимо заполнить пустые строки под ней. Информацию для таблицы нужно получить, обработав выгрузки из базы данных ПО на листах \"Клиенты\" и \"Системы\" средствами Excel."]
[]
["2. Аналитическая часть. По полученной информации необходимо написать аналитическую справку по составу Клиентов, имеющих право на разрешенную скидку."]
[]
["ТЕХНИЧЕСКАЯ ЧАСТЬ (заполнение листа \"Результат\")"]
[]
["Исходная информация:"]
["1. Лист \"Клиенты\" содержит информацию об обслуживаемых на данный момент Клиентах (у которых в свою очередь установлены комплекты систем). Уникальным идентификатором одного Клиента является его номер (поле \"Номер Клиента\"). Номера Клиентов могут повторяться в выгрузке - принимаем это, как данность."]
["2. Лист \"Системы\" содержит данные обо всех системах, когда либо установленных у Клиентов Компании (в том числе и у НЕобслуживаемых на данный момент)."]
["Т.о. в итоге имеются 2 вида данных: \n1. Все обслуживаемые на текущий момент Клиенты; \n2. Все системы, которые покупались Клиентами когда либо, в том числе и  те, которые находятся на обслуживании у действующих Клиентов из первой выгрузки. ОБСЛУЖИВАЕМЫЕ системы идентифициируются по значению столбца \"Вид обсл.\" = \"По Internet\" или = \"Сотрудником\"."]
[]
["Заполнение столбцов:"]
[]
["Столбцы 1-5. Информация для первых 5 столбцов, нумерация которых в первой строке окрашена зеленым, без обработки и изменений полностью копируется с листа \"Клиенты\" из соответствующих столбцов."]
["Столбец 6. Дата первой установки систем. В этом поле необходимо проставить дату. Эта дата должна быть минимальной из всех систем, закрепленных за  конкретным Клиентом (и обслуживаемых и необслуживаемых) по полю \"Установка\" на листе \"Системы\"."]
["Столбец 7. Количество основных систем. Поле должно отражать количество ОСНОВНЫХ ОБСЛУЖИВАЕМЫХ систем Клиента. Основными системами являются: Проф, РЗ, КБ:Проф, КБс  (по полю \"Системы\" одноименного листа)."]
["Столбец 8. Количество дополнительных систем. Поле должно отражать количество ДОПОЛНИТЕЛЬНЫХ ОБСЛУЖИВАЕМЫХ систем Клиента. Дополнительными являются все остальные системы, не перечисленные в предыдущем пункте."]
["Столбец 9. Количество систем. Количество всех ОБСЛУЖИВАЕМЫХ систем."]
["Столбец 10. Максимальное количество одноименных систем. Считаются только ОБСЛУЖИВАЕМЫЕ системы одноименные по полю \"Система\". Например, у Клиента есть: 2 системы РЗ и 3 системы ДБ. В этом случае отражается \"3\"."]
["Столбец 11. Серия систем. Анализ проводится по полю \"Серия\" всех ОБСЛУЖИВАЕМЫХ систем Клиента, согласно следующим условиям:"]
[]
[]
[]
[]
[]
[]
[]
[]
[]
["Столбец 12. Размер разрешенной скидки в %. Анализ проводится по значениям столбца 11 и столбца 9. Если Клиент удовлетворяет нескольким условиям, то проставляется максимальная скидка."]
[]
[]
[]
[]
[]
[]
[]
[]
[]
[]
[]
["Ход действий по выполнению задания должен быть описан, формулы и сводные таблицы сохранены (описание действий и сводные таблицы должны быть на отдельно созданных листах)."]
[]
["Основное требование к заданию: Последующее повторение у нас в офисе всех действий для получения требуемой таблицы при условии, что состав информации на листах \"Клиенты\" и \"Системы\" может быть изменен несущественно (допускаются только построчные изменения, набор столбцов постоянен). При демонстрации выполнения задания допускается и приветствуется использование заранее созданных шаблонов, формул, макросов и т.д."]
[]
["Бонусом является автоматизация всего процесса построения таблицы или его части средствами VBA."]
[]
[]
["АНАЛИТИЧЕСКАЯ ЧАСТЬ"]
[]
["Конкретные требования к заданию отсутствуют. Структура аналитической справки остается на усмотрение соискателя."]

{"sheet":"Условия","index":1,"n_rows":17,"n_cols":4,"rows_kept":17,"cut":false,"hidden":true,"merged":[[1,1,1,3],[9,1,9,3]]}
[]
[null,"Столбец 11. Серия систем."]
[null,"№ п/п","Условие (наличие у клиента)","Значение Столбца 11"]
[null,1,"У клиента есть хотя бы одна система серии С.В","С.В"]
[null,2,"У клиента есть хотя бы одна система серии VIP и не менее 5 основных систем.","VIP"]
[null,3,"У клиента все обслуживаемые системы одинаковой серии. (Правило не распространяется на серию VIP. Для VIP см. условие выше.)","Соответствующая серия"]
[null,4,"У клиента хотя бы одна обслуживаемая система серии А, Д или П.","Соответственно А, Д или П"]
[null,5,"Остальные случаи.","Коммерческий"]
[]
[null,"Столбец 12. Размер разрешенной скидки в %."]
[null,"№ п/п","Условие (наличие у клиента)","Значение Столбца 12"]
[null,1,"Серия С.В Количество систем >= 5",40]
[null,2,"Серия С.В Количество систем < 5",30]
[null,3,"Cерия С/В (Не путать с серией С.В)",30]
[null,4,"Серия VIP",30]
[null,5,"Обслуживается 5 и более любых систем",10]
[null,6,"Обслуживаются 3-4 любые системы",5]

{"sheet":"Результат","index":2,"n_rows":7,"n_cols":17,"rows_kept":7,"cut":false,"hidden":false,"merged":[]}
[1,2,3,4,5,6,7,8,9,10,11,12]
["Номер Клиента","Руководитель","Категория","Площадка","Вид обсл.","Дата первой установки систем ","Количество основных систем","Количество дополнительных систем","Количество систем","Максимальное количество одноименных систем","Серия систем","Размер разрешенной скидки в %"]
[512220,"Таранцев Дмитрий Евгеньевич","A - VIP",1,"По Internet",{"$f":"MIN(IF(Системы!$A$2:$A$9=Результат!A3,Системы!$I$2:$I$9))","v":"00:00:00"},{"$f":"COUNTIFS(Системы!$A:$A,Результат!A3,Системы!$B:$B,\"проф\")+COUNTIFS(Системы!$A:$A,Результат!A3,Системы!$B:$B,\"рз\")+COUNTIFS(Системы!$A:$A,Результат!A3,Системы!$B:$B,\"КБ:Проф\")+COUNTIFS(Системы!$A:$A,Результат!A3,Системы!$B:$B,\"кбс\")-COUNTIFS(Системы!$A:$A,Результат!A3,Системы!$B:$B,\"проф\",Системы!$G:$G,Системы!$G$2)-COUNTIFS(Системы!$A:$A,Результат!A3,Системы!$B:$B,\"рз\",Системы!$G:$G,Системы!$G$2)-COUNTIFS(Системы!$A:$A,Результат!A3,Системы!$B:$B,\"КБ:Проф\",Системы!$G:$G,Системы!$G$2)-COUNTIFS(Системы!$A:$A,Результат!A3,Системы!$B:$B,\"кбс\",Системы!$G:$G,Системы!$G$2)","v":0},{"$f":"COUNTIFS(Системы!$A:$A,Результат!A3)-G3","v":0},{"$f":"G3+H3","v":0},{"$f":"VLOOKUP(A3,'Сводная системы'!$A$5:$BL$10,64,0)","v":{"$error":"#N/A"}},"ЕСЛИ(СУММЕСЛИМН('Сводная серия'!$K:$K;'Сводная серия'!$A:$A;Результат!A3)>0;\"С.В\";ЕСЛИ(И(СУММЕСЛИМН('Сводная серия'!$B:$B;'Сводная серия'!$A:$A;Результат!A3)>0;СУММЕСЛИМН('Сводная системы'!$AY:$AY;'Сводная системы'!$A:$A;Результат!A3)>0;СУММЕСЛИМН('Сводная системы'!$BC:$BC;'Сводная системы'!$A:$A;Результат!A3)>0;СУММЕСЛИМН('Сводная системы'!$AK:$AK;'Сводная системы'!$A:$A;Результат!A3)>0;СУММЕСЛИМН('Сводная системы'!$AM:$AM;'Сводная системы'!$A:$A;Результат!A3)>0);\"VIP\";",null,null,"Проф","РЗ","КБ:Проф","КБс"]
[512220,"Таранцев Дмитрий Евгеньевич","A - VIP",2,"По Internet",{"$f":"MIN(IF(Системы!$A$2:$A$9=Результат!A4,Системы!$I$2:$I$9))","v":"00:00:00"},{"$f":"COUNTIFS(Системы!$A:$A,Результат!A4,Системы!$B:$B,\"проф\")+COUNTIFS(Системы!$A:$A,Результат!A4,Системы!$B:$B,\"рз\")+COUNTIFS(Системы!$A:$A,Результат!A4,Системы!$B:$B,\"КБ:Проф\")+COUNTIFS(Системы!$A:$A,Результат!A4,Системы!$B:$B,\"кбс\")-COUNTIFS(Системы!$A:$A,Результат!A4,Системы!$B:$B,\"проф\",Системы!$G:$G,Системы!$G$2)-COUNTIFS(Системы!$A:$A,Результат!A4,Системы!$B:$B,\"рз\",Системы!$G:$G,Системы!$G$2)-COUNTIFS(Системы!$A:$A,Результат!A4,Системы!$B:$B,\"КБ:Проф\",Системы!$G:$G,Системы!$G$2)-COUNTIFS(Системы!$A:$A,Результат!A4,Системы!$B:$B,\"кбс\",Системы!$G:$G,Системы!$G$2)","v":0},{"$f":"COUNTIFS(Системы!$A:$A,Результат!A4)-G4","v":0},{"$f":"G4+H4","v":0},{"$f":"VLOOKUP(A4,'Сводная системы'!$A$5:$BL$10,64,0)","v":{"$error":"#N/A"}}]
[442239,"Михайлова Татьяна Анатольевна","A",1,"Сотрудником",{"$f":"MIN(IF(Системы!$A$2:$A$9=Результат!A5,Системы!$I$2:$I$9))","v":"00:00:00"},{"$f":"COUNTIFS(Системы!$A:$A,Результат!A5,Системы!$B:$B,\"проф\")+COUNTIFS(Системы!$A:$A,Результат!A5,Системы!$B:$B,\"рз\")+COUNTIFS(Системы!$A:$A,Результат!A5,Системы!$B:$B,\"КБ:Проф\")+COUNTIFS(Системы!$A:$A,Результат!A5,Системы!$B:$B,\"кбс\")-COUNTIFS(Системы!$A:$A,Результат!A5,Системы!$B:$B,\"проф\",Системы!$G:$G,Системы!$G$2)-COUNTIFS(Системы!$A:$A,Результат!A5,Системы!$B:$B,\"рз\",Системы!$G:$G,Системы!$G$2)-COUNTIFS(Системы!$A:$A,Результат!A5,Системы!$B:$B,\"КБ:Проф\",Системы!$G:$G,Системы!$G$2)-COUNTIFS(Системы!$A:$A,Результат!A5,Системы!$B:$B,\"кбс\",Системы!$G:$G,Системы!$G$2)","v":0},{"$f":"COUNTIFS(Системы!$A:$A,Результат!A5)-G5","v":0},{"$f":"G5+H5","v":0},{"$f":"VLOOKUP(A5,'Сводная системы'!$A$5:$BL$10,64,0)","v":{"$error":"#N/A"}}]
[1214420,"Кусакина Любовь Васильевна","C",1,"Сотрудником",{"$f":"MIN(IF(Системы!$A$2:$A$9=Результат!A6,Системы!$I$2:$I$9))","v":"00:00:00"},{"$f":"COUNTIFS(Системы!$A:$A,Результат!A6,Системы!$B:$B,\"проф\")+COUNTIFS(Системы!$A:$A,Результат!A6,Системы!$B:$B,\"рз\")+COUNTIFS(Системы!$A:$A,Результат!A6,Системы!$B:$B,\"КБ:Проф\")+COUNTIFS(Системы!$A:$A,Результат!A6,Системы!$B:$B,\"кбс\")-COUNTIFS(Системы!$A:$A,Результат!A6,Системы!$B:$B,\"проф\",Системы!$G:$G,Системы!$G$2)-COUNTIFS(Системы!$A:$A,Результат!A6,Системы!$B:$B,\"рз\",Системы!$G:$G,Системы!$G$2)-COUNTIFS(Системы!$A:$A,Результат!A6,Системы!$B:$B,\"КБ:Проф\",Системы!$G:$G,Системы!$G$2)-COUNTIFS(Системы!$A:$A,Результат!A6,Системы!$B:$B,\"кбс\",Системы!$G:$G,Системы!$G$2)","v":0},{"$f":"COUNTIFS(Системы!$A:$A,Результат!A6)-G6","v":0},{"$f":"G6+H6","v":0},{"$f":"VLOOKUP(A6,'Сводная системы'!$A$5:$BL$10,64,0)","v":{"$error":"#N/A"}}]
[717818,"Конюшенко Марина Валерьевна","C",1,"Сотрудником",{"$f":"MIN(IF(Системы!$A$2:$A$9=Результат!A7,Системы!$I$2:$I$9))","v":"00:00:00"},{"$f":"COUNTIFS(Системы!$A:$A,Результат!A7,Системы!$B:$B,\"проф\")+COUNTIFS(Системы!$A:$A,Результат!A7,Системы!$B:$B,\"рз\")+COUNTIFS(Системы!$A:$A,Результат!A7,Системы!$B:$B,\"КБ:Проф\")+COUNTIFS(Системы!$A:$A,Результат!A7,Системы!$B:$B,\"кбс\")-COUNTIFS(Системы!$A:$A,Результат!A7,Системы!$B:$B,\"проф\",Системы!$G:$G,Системы!$G$2)-COUNTIFS(Системы!$A:$A,Результат!A7,Системы!$B:$B,\"рз\",Системы!$G:$G,Системы!$G$2)-COUNTIFS(Системы!$A:$A,Результат!A7,Системы!$B:$B,\"КБ:Проф\",Системы!$G:$G,Системы!$G$2)-COUNTIFS(Системы!$A:$A,Результат!A7,Системы!$B:$B,\"кбс\",Системы!$G:$G,Системы!$G$2)","v":0},{"$f":"COUNTIFS(Системы!$A:$A,Результат!A7)-G7","v":0},0,{"$f":"VLOOKUP(A7,'Сводная системы'!$A$5:$BL$10,64,0)","v":{"$error":"#N/A"}}]

{"sheet":"Системы","index":3,"n_rows":9,"n_cols":15,"rows_kept":9,"cut":false,"hidden":false,"merged":[]}
["Номер клиента","Система","Форма собственности","Серия","Версия","Статус","Вид обсл.","Куратор","Установка"]
[223445,"АС","ОАО",null,"Локальная (1)","-","Необслуживаемая","","2001-11-09",null,null,"Проф","РЗ","КБ:Проф","КБс"]
[17854,"КДВ","ЗАО",null,"Однопользовательская (1)","-","Необслуживаемая","Заярный Сергей Леонидович","2004-10-01"]
[79542,"АВ","ООО",null,"Локальная (1)","-","Необслуживаемая","","1999-02-15"]
[17066,"АВ","",null,"Локальная (1)","-","Необслуживаемая","","1998-12-25"]
[622352,"ПСР","ООО",null,"Однопользовательская (1)","-","Необслуживаемая","Кусакина Любовь Васильевна","2008-04-30"]
[432146,"ДБ","","С.В","Локальная (1)","-","Необслуживаемая","Таранцев Дмитрий Евгеньевич","2005-01-26"]
[17473,"КЗ","ООО",null,"Однопользовательская (1)","+","По Internet","Матвеева Татьяна Викторовна","2003-03-14"]
[16323,"ДБ","ЗАО",null,"Однопользовательская (1)","+","По Internet","Галин Андрей Александрович","2005-03-24"]

{"sheet":"Клиенты","index":4,"n_rows":11,"n_cols":7,"rows_kept":11,"cut":false,"hidden":false,"merged":[]}
["Номер Клиента","Форма","Категория","Вид обсл.","Руководитель","Площадка","Территория"]
[512220,"ЗАО","A - VIP","По Internet","Таранцев Дмитрий Евгеньевич",1,"Москва"]
[512220,"ЗАО","A - VIP","По Internet","Таранцев Дмитрий Евгеньевич",2,"Москва"]
[512220,"ЗАО","A - VIP","По Internet","Таранцев Дмитрий Евгеньевич",2,"Москва"]
[442239,"ООО","A","Сотрудником","Михайлова Татьяна Анатольевна",1,"Москва"]
[1214420,"ООО","C","Сотрудником","Кусакина Любовь Васильевна",1,"2 зона"]
[717818,"ООО","C","Сотрудником","Конюшенко Марина Валерьевна",1,"Москва"]
[384540,"ОАО","A","Сотрудником","Матвеева Татьяна Викторовна",1,"Москва"]
[198274,"ООО","C","Сотрудником","Конюшенко Марина Валерьевна",1,"1 зона"]
[17645,"ООО","A","Сотрудником","Михайлова Татьяна Анатольевна",1,"Москва"]
[17645,"ООО","A","По Internet","Матвеева Татьяна Викторовна",2,"Москва"]

{"sheet":"Сводная серия","index":5,"n_rows":9,"n_cols":16,"rows_kept":9,"cut":false,"hidden":false,"merged":[]}
["Вид обсл.","(несколько элементов)"]
[]
["Количество по полю Серия","Названия столбцов"]
["Названия строк","VIP","А","Д","ДСП","интранет","ИЦ","ЛСВ","Н/К","П","С.В","С.К","С.Р","С/В","С/У","(пусто)"]
[87]
[563]
[655,null,1]
[1410,null,null,null,null,null,null,null,null,null,null,6]
[1416,null,null,null,null,null,null,null,null,null,null,null,null,4]

{"sheet":"Сводная системы","index":6,"n_rows":10,"n_cols":64,"rows_kept":10,"cut":false,"hidden":false,"merged":[]}
["Вид обсл.","(несколько элементов)"]
[]
["Количество по полю Система","Система"]
["Номер клиента","01АС","02АС","03АС","04АС","05АС","06АС","07АС","08АС","11АС","12АС","13АС","14АС","15АС","16АС","17АС","18АС","19АС","20АС","АВ","АС","ВО","ДБ","ДСССР","ЗП","КАВВО","КАВСО","КАДВО","КАЗСО","КАМО","КАНС","КАПО","КАСЗО","КАСКО","КАУО","КАЦО","КБ:Проф","КБО","КБс","КЗ","КПС","КС","КФ","МВып","МОбл","МПраво","МПроф","МСП","МФ","НБУ","Проф","ПСР","РВС","Рег","РЗ","СвАС","СвердлСП","СвКА","СвРег","СОЮ","СПб","ЦБ","ЭП","макс"]
[87,null,null,null,null,null,null,null,null,null,null,null,null,null,null,null,null,null,null,null,null,null,null,null,null,null,null,null,null,null,null,null,null,null,null,null,null,null,null,null,null,null,null,null,null,null,null,null,null,1,null,null,null,null,null,null,null,null,null,null,null,null,null,1]
[563,null,null,null,null,null,null,null,null,null,null,null,null,null,null,null,null,null,null,null,null,null,null,null,null,null,null,null,null,null,null,null,null,null,null,null,null,null,null,null,null,null,null,1,null,null,null,null,null,null,null,null,null,null,1,null,null,null,null,null,null,null,null,1]
[655,null,null,null,null,null,null,null,null,null,null,null,null,null,null,null,null,null,null,null,null,null,null,null,null,null,null,null,null,null,null,null,null,null,null,null,1,null,null,null,null,null,null,null,null,null,null,null,null,null,null,null,null,null,null,null,null,null,null,null,null,null,null,1]
[1410,null,null,null,null,null,null,null,null,null,null,null,null,null,null,null,null,null,null,null,null,null,null,null,null,null,null,null,null,null,null,null,null,null,null,null,null,null,null,1,null,null,1,null,null,null,1,1,null,null,1,null,1,null,null,null,null,1,null,1,null,null,null,1]
[1416,null,null,null,null,null,null,null,null,null,null,null,null,null,null,null,null,null,null,null,null,null,null,null,null,null,null,null,null,null,null,null,null,null,null,null,null,null,null,1,null,null,null,null,null,null,1,null,null,null,1,null,1,null,null,null,null,null,null,null,null,null,null,1]
[1808,null,null,null,null,null,null,null,null,null,null,null,null,null,null,null,null,null,null,null,null,2,4,null,null,null,null,null,null,null,null,null,null,null,null,null,3,null,null,null,null,1,2,3,1,null,3,null,null,null,null,null,1,null,3,null,null,null,null,null,null,null,null,4]